{"text_format":"2","workbook":"xlsx","n_sheets":1,"sheets":["Dessasoreamento"],"not_rendered":{"charts":0,"images":1,"macros":0,"external_links":0,"defined_names":16,"comments":0,"pivot_tables":0},"unopened":[],"bounds":{"document_bytes":16777216,"sheet_cells":100000,"run_cost":"one","rows_first":2000,"rows_last":500,"rows_between":2000,"halvings":0,"cell_chars":16384,"cell_head_chars":4096},"cells_cut":0,"cells_raw":0,"read":"whole","date_system":"1900"}

{"sheet":"Dessasoreamento","index":0,"n_rows":74,"n_cols":14,"rows_kept":74,"cut":false,"hidden":false,"merged":[[8,4,8,11],[8,12,9,13],[76,0,76,9],[5,0,5,10],[8,0,10,0],[8,1,10,1],[8,2,10,2],[8,3,10,3],[9,4,9,5],[9,6,9,7],[9,8,9,9],[9,10,9,11],[45,0,47,0],[45,1,47,1],[45,2,47,2],[45,3,47,3],[45,4,45,11],[45,12,46,13],[46,4,46,5],[46,6,46,7],[46,8,46,9],[46,10,46,11],[17,0,19,0],[17,1,19,1],[17,2,19,2],[17,3,19,3],[17,4,17,11],[17,12,18,13],[18,4,18,5],[18,6,18,7],[18,8,18,9],[18,10,18,11],[34,0,36,0],[34,1,36,1],[34,2,36,2],[34,3,36,3],[34,4,34,11],[34,12,35,13],[35,4,35,5],[35,6,35,7],[35,8,35,9],[35,10,35,11],[54,0,56,0],[54,1,56,1],[54,2,56,2],[54,3,56,3],[54,4,54,11],[54,12,55,13],[55,4,55,5],[55,6,55,7],[55,8,55,9],[55,10,55,11],[65,0,67,0],[65,1,67,1],[65,2,67,2],[65,3,67,3],[65,4,65,11],[65,12,66,13],[66,4,66,5],[66,6,66,7],[66,8,66,9],[66,10,66,11]]}
[]
[null,"                                                         Ministério da Integração Nacional"]
[null,"                                                         Companhia de Desenvolvimento dos Vales do São Francisco e do Parnaíba"]
[]
[]
["CRONOGRAMA FÍSICO E FINANCEIRO"]
[]
[]
["ITEM","DISCRIMINAÇÃO","Un.","Quant. Total","PERÍODO- MÊSES",{"$nulls":7},"TOTAL"]
[{"$nulls":4},"MÊS 1",null,"MÊS 2",null,"MÊS 3",null,"MÊS 4"]
[{"$nulls":4},"Quant.","Valor- R$","Quant.","Valor- R$","Quant.","Valor- R$","Quant.","Valor- R$","Valor Unit. R$ ","Valor Total   R$"]
[1,"Sistema flutuante de Bombeamento de água, composto de: Plataforma metálica flutuante para fixação dos conjuntos motobomba centrífuga padrão modelo METN300-250-315 KSB, montada em base metálica e motor elétrico de 150 CV / 6 pólos/ 380-440 V (1200 m³/h x 25 m.c.a.), apoiada sobre conjunto de flutuadores em material termoplástico (tambores em PEAD de Ø 600 x 1.000 mm), sendo 10 plataformas  flutuantes, composta de três conjuntos motobomba em cada plataforma, incluído o arranjo hidráulico de tubulação/conexões de sucção e recalque (para interligação no trecho flexível); Válvula de Pé com crivo Ø 20\", flangeada padrão NBR 7675, classe de pressão PN 6, corpo e crivo em Ferro Nodular ASTM A536 ou aço 1020, válvula e sede em bronze ou latão; com válvula borboleta Ø 16\", acionamento através de caixa redutora c/ volante, tipo waffer, classe de pressão 150 psi, corpo e volante em Ferro Nodular ASTM A536; conjunto motobomba submersível para realização automática da escorva; transmissores eletrônicos de pressão para indicação remota e manômetro para indicação direta da pressão de recalque; mangote de borracha Ø18\" x 6,0 m flange padrão ANSI B16.5; válvula ventosa tríplice função.\n","Cj",10,8,{"$f":"E12*M12","v":4431200},2,{"$f":"G12*M12","v":1107800},{"$nulls":4},553900,{"$f":"ROUND(D12*M12,2)","v":5539000}]
[2,"Tubulação Ø 450mm, em PEAD PE 100, SDR 26, PN 6 bar, Normalizado ABNT NBR 15.561 com certificado (total de 1.500 m em 30 linhas de 48 m cada, em trechos de 6 e/ou 12 metros, conectados por flange metálico entre pontas e solda por termofusão entre tubos), incluídas soldagem por termofusão, ancoragem e instalação","Cj",30,20,{"$f":"E13*M13","v":592120},10,{"$f":"G13*M13","v":296060},{"$nulls":4},29606,888180]
[3,"Tubulação Ø 710 mm, em PEAD PE 100, SDR 26, PN 6 bar, Normalizado ABNT NBR 15.561 com certificado (total de 250 m em 8 linhas de 31,2 m cada (média), em trechos de 12 e/ou 6 metros metros, conectados por flange entre pontas e solda por termofusão entre tubos), incluídas soldagem por termofusão, ancoragem e instalação.","Cj",10,8,{"$f":"E14*M14","v":334026.66666666669},2,{"$f":"G14*M14","v":83506.666666666672},{"$nulls":4},41753.333333333336,417533.33]
[]
[]
[]
["ITEM","DISCRIMINAÇÃO","Un.","Quant. Total","PERÍODO- MÊSES",{"$nulls":7},"TOTAL"]
[{"$nulls":4},"MÊS 1",null,"MÊS 2",null,"MÊS 3",null,"MÊS 4"]
[{"$nulls":4},"Quant.","Valor- R$","Quant.","Valor- R$","Quant.","Valor- R$","Quant.","Valor- R$","Valor Unit. R$ ","Valor Total   R$"]
[4,"Barrilete metálico secundário, fabricado em chapa de aço carbono #6,35 mm, Ø 700 mm x 4.000 mm, com três derivações de Ø 450 mm, flanges padrão ANSI/ABNT, pintura em tinta epoxi.","Cj",10,6,{"$f":"E21*M21","v":105800},2,{"$f":"G21*M21","v":35266.666666666664},2,{"$f":"H21","v":35266.666666666664},null,null,17633.333333333332,176333.33]
[5,"Barrilete metálico primário esquerdo, fabricado em chapa de aço carbono #9,52 mm, Ø 1.200 mm x 10 m, com sete derivações de Ø 700 mm, flanges padrão ANSI/ABNT, pintura em tinta epoxi, com 07 Válvulas de Retenção Ø 28\", fechamento rápido, montagem tipo waffer, PN 10, corpo  em Ferro Nodular ASTM 536, obturador em Poliuretano e válvula ventosa tríplice função.","Cj",1,1,{"$f":"N22","v":270000},{"$nulls":6},270000,270000]
[6,"Barrilete metálico primário direito, fabricado em chapa de aço carbono #9,52 mm, Ø 800 mm x 5 m, com três derivações de Ø 700 mm, flanges padrão ANSI/ABNT, pintura em tinta epoxi, com 03 Válvulas de Retenção Ø 28\", fechamento rápido, montagem tipo waffer, PN 10, corpo  em Ferro Nodular ASTM 536, obturador em Poliuretano e válvula ventosa tríplice ação.","Cj",1,1,{"$f":"M23","v":126333.33333333333},{"$nulls":6},126333.33333333333,126333.33]
[7,"Transformadores AT/BT  trifásicos à óleo, 2.000 KVA @ 6,6 KV x 440 V","Unid.",3,3,{"$f":"N24","v":396000},{"$nulls":6},132000,396000]
[8,"Painel elétrico de distribuição AT (CCA), 6,6 KV com chave e proteção, composto de uma coluna de entrada e 3 colunas de saída, medição de tensão e corrente.","Unid.",1,1,{"$f":"N25","v":457873.33},{"$nulls":6},457873.33333333331,457873.33]
[9,"Painel elétrico de distribuição BT 440V @ 2.500 A (CCB), entrada de 250 A e 10 saídas de 250 A, com chave motorizada , medição de corrente, medição de tensão e integração ao sistema de supervisão em plc para acionamento e controle remoto, montado em casco em aço carbono 1900 x 1600 x 800, IP-54.","Unid.",3,3,{"$f":"N26","v":340000},{"$nulls":6},113333.33333333333,340000]
[10,"Painel Elétrico de comando (CCM), com Soft Starter para motor 150 cv, 380/440 V @ 60 Hz, com inclusão da medição de corrente e capacitores para correção do fator de potência.","Unid.",30,null,null,30,{"$f":"N27","v":1428220},{"$nulls":4},47607.333333333336,1428220]
[11,"Painel de Controle e supervisão para acionamento remoto do sistema, com plc e microcomputador.","Unid.",1,null,null,1,93000,{"$nulls":4},93000,93000]
[12,"Painéis Elétricos auxiliares de controle, para interligação dos painéis seccionadores BT ao painel de controle central.","Unid.",3,null,null,3,85000,{"$nulls":4},28333.333333333332,85000]
[]
[]
[]
[]
[]
["ITEM","DISCRIMINAÇÃO","Un.","Quant. Total","PERÍODO- MÊSES",{"$nulls":7},"TOTAL"]
[{"$nulls":4},"MÊS 1",null,"MÊS 2",null,"MÊS 3",null,"MÊS 4"]
[{"$nulls":4},"Quant.","Valor- R$","Quant.","Valor- R$","Quant.","Valor- R$","Quant.","Valor- R$","Valor Unit. R$ ","Valor Total   R$"]
[13,"Materiais para montagem da infra estrutura de calhas e eletrodutos para encaminhamento dos cabos à partir da chave AT, passando pelo painel de distribuição AT (CCA) até a entrada dos transformadores, incluindo os materiais para preparação dos cubículos de transformação.","Unid.",1,null,null,1,42000,{"$nulls":4},42000,42000]
[14,"Materiais para montagem da infra estrutura de calhas e eletrodutos para encaminhamento dos cabos à partir da saída BT dos transformadores até a entrada dos painéis de distribuição de BT (CCB), incluindo os materiais para preparação dos cubículos de distribuição.","Unid.",1,null,null,1,79333.33,{"$nulls":4},79333.333333333328,79333.33]
[15,"Materiais para montagem da infra estrutura de calhas e eletrodutos para encaminhamento dos cabos à partir da saída dos painéis de distribuição de BT (CCB) até a entrada dos painéis de comando dos motores (CCM), incluindo os materiais para preparação dos cubículos de distribuição.","Unid.",1,null,null,1,81666.67,{"$nulls":4},81666.666666666672,81666.67]
[16,"Materiais para montagem da infra estrutura de calhas e eletrodutos para encaminhamento dos cabos à partir da saída dos painéis de comando dos motores (CCM) até os motores dos conjuntos motobomba (nas plataformas flutuantes), incluindo os materiais para preparação dos suportes de sustentação dos cabos na parede da EB-1.","Unid.",1,null,null,1,79333.33,{"$nulls":4},79333.333333333328,79333.33]
[17,"Cabos elétricos para interligação à partir da chave de AT até a entrada dos painéis de distribuição de BT (CCB), conforme bitolas e tipos abaixo listados: (estimativa das quantidades para composição de proposta, podendo ser revisada para menos após conclusão do projeto elétrico)\n- Cabo flexível unifilar, isolamento 8,7/15 KV, temperatura máxima de trabalho 90 °C, área de 150 mm²: 560 m (R$128,00/m)\n- Cabo flexível unifilar, isolamento 0,6/1 KV, temperatura máxima de trabalho 90 °C, área de 240 mm²: 1.620 m (R$76,75/m)\n- Cabo flexível unifilar, isolamento 0,6/1 KV, temperatura máxima de trabalho 90 °C, área de 120 mm²: 3.500 m (R$36,35/m)\n","Cj",1,null,null,1,317068.33,{"$nulls":4},317068.33333333331,317068.33]
[]
[]
[]
["ITEM","DISCRIMINAÇÃO","Un.","Quant. Total","PERÍODO- MÊSES",{"$nulls":7},"TOTAL"]
[{"$nulls":4},"MÊS 1",null,"MÊS 2",null,"MÊS 3",null,"MÊS 4"]
[{"$nulls":4},"Quant.","Valor- R$","Quant.","Valor- R$","Quant.","Valor- R$","Quant.","Valor- R$","Valor Unit. R$ ","Valor Total   R$"]
[18,"Cabos elétricos para interligação à partir das saídas dos painéis de distribuição de BT (CCB) até os motores, conforme bitolas e tipos abaixo listados: (estimativa das quantidades para composição de proposta, podendo ser revisada para menos após conclusão do projeto elétrico)\n- Cabo flexível unifilar, isolamento 0,6/1 KV, temperatura máxima de trabalho 90 °C, área de 120 mm²: 6.850 m (R$36,35/m)\n- Cabo flexível 4 vias, isolamento 0,6/1 KV, temperatura máxima de trabalho 90 °C, área de 4x10,0 mm²: 15.000 m (R$19,30/m)\n- Cabo flexível 4 vias, isolamento 0,6/1 KV, temperatura máxima de trabalho 90 °C, área de 4x6,0 mm²: 3.000 m (R$12,90/m)\n- Cabo flexível 4 vias, isolamento 0,6/1 KV, temperatura máxima de trabalho 90 °C, área de 4x4,0 mm²: 3.000 m (R$8,50/m)\n- Cabo flexível 4 vias, isolamento 0,6/1 KV, temperatura máxima de trabalho 90 °C, área de 4x1,5 mm²: 3.000 m (R$3,75/m)\n- Cabo flexível 2 vias, isolamento 0,6/1 KV, temperatura máxima de trabalho 90 °C, área de 2x2,5 mm²: 5.000 m (R$2,92/m)\n- Cabo flexível 2 vias, isolamento 0,6/1 KV, temperatura máxima de trabalho 90 °C, área de 2x1,5 mm²: 5.000 m (R$2,12/m)\n","Cj",1,{"$nulls":4},1,{"$f":"N49","v":656359.67000000004},null,null,656359.66666666663,656359.67000000004]
[19,"Montagem da infra estrutura de calhas e eletrodutos, encaminhamento dos cabos e interligações à partir da chave AT, passando pelo painel de distribuição AT (CCA) até a entrada dos transformadores, incluindo a preparação dos cubículos de transformação.","Unid.",1,1,{"$f":"N50","v":79933.33},{"$nulls":6},79933.333333333328,79933.33]
[20,"Montagem da infra estrutura de calhas e eletrodutos, encaminhamento dos cabos e interligações à partir da saída BT dos transformadores até a entrada dos painéis de distribuição de BT (CCB), incluindo a preparação dos cubículos de distribuição.","Unid.",1,1,{"$f":"N51","v":138200},{"$nulls":6},138200,138200]
[21,"Montagem da infra estrutura de calhas e eletrodutos, encaminhamento dos cabos e interligações à partir da saída dos painéis de distribuição de BT (CCB) até a entrada dos painéis de comando dos motores (CCM), incluindo a preparação dos cubículos de distribuição.","Unid.",1,null,null,1,{"$f":"N52","v":113333.33},{"$nulls":4},113333.33333333333,113333.33]
[]
[]
["ITEM","DISCRIMINAÇÃO","Un.","Quant. Total","PERÍODO- MÊSES",{"$nulls":7},"TOTAL"]
[{"$nulls":4},"MÊS 1",null,"MÊS 2",null,"MÊS 3",null,"MÊS 4"]
[{"$nulls":4},"Quant.","Valor- R$","Quant.","Valor- R$","Quant.","Valor- R$","Quant.","Valor- R$","Valor Unit. R$ ","Valor Total   R$"]
[22,"Montagem da infra estrutura de calhas e eletrodutos, encaminhamento dos cabos e interligações à partir da saída dos painéis de comando dos motores (CCM) até os motores dos conjuntos motobomba (nas plataformas flutuantes), incluindo a preparação dos suportes de sustentação dos cabos na parede da EB-1.","Unid.",1,null,null,1,{"$f":"N58","v":144200},{"$nulls":4},144200,144200]
[23,"Limpeza do espelho d'água da visada traseira da EB-1, com retirada de aguapés e instalação de linhas de flutuadores para bloquear o avanço das plantas aquáticas na área de instalação dos sistemas flutuantes.","vb",1,1,{"$f":"N59","v":23733.33},{"$nulls":6},23733.333333333332,23733.33]
[24,"Instalação dos dez (10) barriletes secundários, incluída a realização da ancoragem; instalação da tubulação em PEAD Ø 710 mm interligando aos barriletes primários.","Unid.",10,8,{"$f":"E60*M60","v":66666.666666666672},2,{"$f":"G60*M60","v":16666.666666666668},{"$nulls":4},8333.3333333333339,83333.33]
[25,"Instalação do barrilete primário esquerdo Ø 1.200 mm, incluída a picagem na Tubulação de recalque T10, com ensaios de líquido penetrante e ultrasom; instalação de sete (07) válvulas de retenção tipo clasar Ø 28\"; realização da ancoragem.","Unid.",1,null,null,1,{"$f":"N61","v":65666.67},{"$nulls":4},65666.666666666672,65666.67]
[26,"Instalação do barrilete primário direito Ø 800 mm, incluída a picagem na Tubulação de recalque T10, com ensaios de líquido penetrante e ultrasom; instalação de três (03) válvulas de retenção tipo clasar Ø 28\"; realização da ancoragem.","Unid.",1,null,null,1,{"$f":"N62","v":42676.67},{"$nulls":4},42676.666666666701,42676.67]
[]
[]
[]
["ITEM","DISCRIMINAÇÃO","Un.","Quant. Total","PERÍODO- MÊSES",{"$nulls":7},"TOTAL"]
[{"$nulls":4},"MÊS 1",null,"MÊS 2",null,"MÊS 3",null,"MÊS 4"]
[{"$nulls":4},"Quant.","Valor- R$","Quant.","Valor- R$","Quant.","Valor- R$","Quant.","Valor- R$","Valor Unit. R$ ","Valor Total   R$"]
[27,"Montagem mecânica de dez (10) plataformas metálicas flutuantes, totalizando 30 conjuntos motobomba, considerando descarregamento na obra, colocação no espelho d’água (previsto até 60 metros de distância da margem); interligação com a tubulação em PEAD Ø 450 mm e trecho flexível em mangote de borracha Ø 18\" x 6,0 m  (previsto até 130 pçs em PEAD – média de 4,5 pçs/conjunto); instalação da instrumentação de pressão e nível; instalação de dez (10) sistemas de escorva automático; instalação das válvulas de bloqueio tipo borboleta Ø 16\"; instalação das válvulas de pé com crivo; execução das interligações da tubulação até os barriletes secundários; instalação de cabos de aço e anilhas para ancoragem das plataformas metálica flutuantes. \nIncluído no escopo da instalação os testes operacionais.\n","Unid.",10,8,{"$f":"E69*M69","v":184800},2,{"$f":"G69*M69","v":46200},{"$nulls":4},23100,231000]
[28,"Projeto Executivo, com descrição do projeto mecânico, hidráulico e elétrico; diagrama unifilar de AT/BT/Controle; fluxograma de instrumentação; lay-out de montagem; desenho das embarcações; folhas de dados dos componentes.","vb",1,0.6,{"$f":"E70*N70","v":129000},{"$nulls":4},0.4,{"$f":"K70*M70","v":86000},215000,215000]
[29,"Supervisão de Montagem Mecânica, Hidráulica e Elétrica, incluindo operação assistida por 10 dias","dias",110,30,{"$f":"E71*M71","v":57000},30,{"$f":"G71*M71","v":57000},30,{"$f":"I71*M71","v":57000},20,{"$f":"K71*M71","v":38000},1900,209000]
[30,"Mobilização do Canteiro de Obras, incluindo a Placa da Obra.","Vb",1,1,78000,{"$nulls":6},76000,76000]
[31,"Desmobilização do Canteiro de Obras","Vb",1,{"$nulls":6},1,48000,50000,50000]
["TOTAL DE SERVIÇOS",{"$nulls":4},{"$f":"SUM(F12:F73)","v":7810686.6566666672},null,{"$f":"SUM(H12:H73)","v":4213998.33},null,{"$f":"SUM(J12:J73)","v":748626.33666666667},{"$f":"SUM(K12:K25)","v":0},{"$f":"SUM(L12:L73)","v":172000},null,12945311.3333333]